bitfinex/quotes_ETHUSD_20250801
["timestamp","ask_amount","ask_price","bid_price","bid_amount"]
[1754033821058,1.496,3635.9,3635.6,2.75056953]
[1754033821263,0.4537,3635.9,3635.5,0.1376]
[1754033821458,1.0423,3635.8,3635.5,0.1376]
[1754033821762,1.0423,3635.8,3634.7,0.20638752]
[1754033821763,0.1376,3635.6,3634.7,2.75125279]
[1754033821966,1.496,3635.5,3634.3,2.75150678]
[1754033822130,1.496,3635.4,3634.1,0.002]
[1754033822326,0.1376,3634.6,3634.5,5.75141009]
[1754033822575,0.1376,3634.9,3634.4,0.1376]
[1754033822742,1.0423,3634.8,3634.5,3.0]
[1754033823068,1.1799,3634.7,3634.2,0.1376]
[1754033823475,1.1799,3634.7,3634.4,3.0]
[1754033823656,1.0423,3634.6,3634.5,5.75139924]
[1754033823973,0.1376,3634.7,3634.6,2.75133439]
[1754033824562,0.1376,3634.7,3634.6,5.77884773]
[1754033824740,0.1376,3634.7,3634.6,6.17243439]
[1754033825079,0.1376,3635.8,3635.7,5.75048949]
[1754033825281,0.1376,3635.8,3635.7,2.75048949]
[1754033825464,1.1799,3635.8,3635.2,0.1376]
[1754033825634,0.4537,3635.7,3634.6,5.75133439]
[1754033825952,0.1376,3635.2,3635.1,2.75095595]
[1754033826145,1.6336,3635.2,3635.1,2.75095595]
[1754033826349,1.1799,3635.2,3635.1,2.75095595]
[1754033827182,0.1376,3635.2,3635.1,2.75095595]
[1754033827536,0.1376,3635.2,3635.1,5.75095595]
[1754033828192,0.1376,3635.2,3634.7,3.1376]
[1754033828335,1.1799,3635.2,3635.1,2.75095595]
[1754033828543,0.1376,3635.2,3635.1,3.0]
[1754033828754,0.5913,3635.2,3634.8,2.751183]
[1754033828980,0.1376,3635.2,3634.7,0.1376]
[1754033829290,1.496,3635.1,3634.7,0.1376]
[1754033829491,0.55,3636.4,3634.1,0.002]
[1754033829492,1.496,3635.0,3634.4,2.75141394]
[1754033829635,0.1376,3634.8,3634.4,2.7514356]
[1754033830152,1.0423,3634.7,3634.6,2.75133439]
[1754033830355,0.1376,3634.8,3634.7,2.7512587]
[1754033830937,1.0423,3635.4,3635.1,2.75090617]
[1754033831184,0.1376,3635.2,3635.1,2.75090617]
[1754033831499,0.1376,3635.2,3634.8,2.751183]
[1754033831659,1.1799,3635.2,3635.0,2.75101978]
[1754033831850,1.1799,3635.2,3635.1,2.75095595]
[1754033832057,0.1376,3635.2,3635.1,2.75095595]
[1754033832467,0.1376,3635.2,3635.0,2.75100392]
[1754033832843,0.1376,3635.2,3634.7,0.1376]
[1754033832844,1.1799,3635.2,3634.9,2.75108524]
[1754033833179,0.1376,3635.2,3635.1,2.75095595]
[1754033833495,0.1376,3635.2,3635.1,3.0]
[1754033833801,0.1376,3635.2,3635.1,5.75095595]
[1754033833967,0.1376,3635.2,3634.9,2.75110265]
[1754033833968,0.1376,3635.2,3634.9,3.0]
[1754033834699,0.1376,3635.2,3635.0,3.0]
[1754033834897,0.1376,3635.2,3634.9,3.0]
[1754033835059,0.1376,3635.2,3634.7,3.1376]
[1754033835060,1.496,3635.1,3634.7,3.1376]
[1754033835257,1.0423,3635.0,3634.7,2.88882876]
[1754033835510,0.1376,3635.2,3634.9,5.75110732]
[1754033835800,1.0423,3635.4,3635.1,2.75095595]
[1754033836000,0.1376,3635.3,3635.1,3.0]
[1754033836161,0.1376,3635.3,3635.1,2.75090785]
[1754033836364,0.1376,3635.3,3635.1,3.0]
[1754033836570,0.1376,3635.3,3635.2,5.75088028]
[1754033837298,0.4348,3636.3,3635.4,3.0]
[1754033837299,0.1376,3635.8,3635.4,3.0]
[1754033837702,1.2314,3635.8,3635.3,3.0]
[1754033837865,1.5286,3635.7,3635.2,0.1376]
[1754033838202,0.1376,3635.5,3635.0,0.1376]
[1754033838362,0.1376,3635.5,3635.3,3.0]
[1754033838563,0.1376,3635.5,3635.1,3.0]
[1754033838763,0.1376,3635.5,3635.0,2.88857382]
[1754033838764,1.2314,3635.5,3635.0,0.1376]
[1754033838992,0.1376,3635.5,3635.0,0.1376]
[1754033839211,0.1376,3635.5,3635.2,3.0]
[1754033839496,0.1376,3635.8,3635.5,3.0]
[1754033839663,0.1376,3635.8,3635.3,0.1376]
[1754033840070,0.4348,3636.2,3635.9,3.0]
[1754033840071,1.0938,3636.2,3635.9,3.0]
[1754033840390,0.1376,3636.0,3635.7,2.75047579]
[1754033840769,0.4348,3636.6,3636.0,3.0]
[1754033840969,0.4348,3636.6,3635.5,0.1376]
[1754033840970,0.1376,3636.1,3635.5,0.1376]
[1754033841186,1.0938,3636.5,3636.0,2.7502197]
[1754033841396,0.1376,3636.1,3635.6,0.1376]
[1754033841623,0.55,3635.9,3635.2,3.0]
[1754033841818,0.55,3635.7,3635.1,5.7509314]
[1754033842122,0.1376,3635.4,3635.1,5.7509314]
[1754033842480,1.0938,3635.3,3635.0,3.0]
[1754033842683,0.1376,3635.4,3635.0,3.0]
[1754033842684,1.0938,3635.2,3635.0,3.0]
[1754033842883,0.1376,3635.4,3635.0,3.0]
[1754033843074,1.2314,3635.4,3635.1,2.75095595]
[1754033843303,1.0938,3635.3,3635.0,2.75102632]
[1754033843486,1.0938,3635.3,3635.1,5.7509491]
[1754033843908,0.1376,3635.4,3635.3,3.0]
[1754033844105,1.0938,3635.9,3635.3,3.0]
[1754033844312,0.1376,3635.8,3635.3,2.8883521]
[1754033844476,1.5286,3635.7,3635.3,0.1376]
[1754033844676,0.4348,3635.7,3635.4,3.0]
[1754033844899,1.0938,3635.6,3635.4,2.75072128]
[1754033845097,0.1376,3635.8,3635.5,3.0]
[1754033845289,1.2314,3635.8,3635.5,3.0]
[1754033845890,1.2314,3635.8,3635.3,0.1376]
[1754033846214,1.0938,3635.7,3635.3,0.1376]
[1754033846420,1.0938,3635.7,3635.4,3.0]
[1754033846592,1.0938,3635.7,3635.5,3.0]
[1754033846912,1.0938,3635.7,3635.3,2.88838915]
[1754033847214,0.5724,3635.8,3635.4,3.0]
[1754033847410,1.0938,3635.6,3635.0,2.75098378]
[1754033847597,0.1376,3635.4,3635.2,3.0]
[1754033847778,1.0938,3635.3,3634.9,3.1376]
[1754033847979,0.5724,3635.4,3634.9,3.1376]
[1754033848173,0.5724,3635.4,3634.9,2.88868008]
[1754033848500,1.0938,3635.3,3634.9,0.1376]
[1754033848825,1.0938,3635.2,3634.9,0.1376]
[1754033849124,1.0938,3635.2,3635.1,3.0]
[1754033849443,1.0938,3635.2,3635.1,5.75095595]
[1754033849943,1.0938,3635.2,3635.1,3.0]
[1754033850425,1.5286,3635.2,3635.1,3.0]
[1754033850828,1.0938,3635.2,3635.1,3.0]
[1754033851031,0.1376,3635.4,3635.2,5.7508666]
[1754033851344,1.2314,3635.4,3635.2,5.7508666]
[1754033851508,1.2314,3635.4,3635.1,2.75092625]
[1754033851714,1.0938,3635.3,3634.9,0.1376]
[1754033852336,1.0938,3635.2,3635.1,2.75095595]
[1754033852929,1.0938,3635.2,3635.1,5.75095595]
[1754033853103,1.0938,3635.5,3635.2,3.0]
[1754033853303,0.1376,3635.3,3635.0,5.75102252]
[1754033853528,1.2314,3635.3,3635.0,5.75102252]
[1754033853831,0.1376,3635.1,3635.0,5.75102252]
[1754033854202,0.1376,3635.1,3635.0,2.75103163]
[1754033855433,1.0938,3636.2,3635.6,3.0]
[1754033855637,1.0938,3636.2,3635.5,3.0]
[1754033855806,0.1376,3635.6,3635.0,0.1376]
[1754033856007,0.1376,3635.6,3635.5,5.75065328]
[1754033856537,0.1376,3635.6,3635.4,2.75070805]
[1754033856745,0.1376,3635.6,3635.5,5.75065328]
[1754033856901,1.0938,3636.2,3635.7,2.75042747]
[1754033857107,0.4348,3636.4,3635.4,0.27507081]
[1754033857306,1.0938,3636.2,3635.4,3.02576707]
[1754033857503,0.1376,3635.8,3635.7,2.75050196]
[1754033857722,1.0938,3636.8,3636.2,2.7500999]
[1754033858101,1.0938,3636.8,3636.2,2.75006151]
[1754033858102,0.1376,3636.3,3636.2,2.75006151]
[1754033859246,0.1376,3636.3,3635.7,0.44094321]
[1754033859433,0.55,3636.2,3635.0,3.0]
[1754033859631,1.5286,3636.1,3635.0,3.0]
[1754033859808,0.1376,3635.5,3635.4,5.75070869]
[1754033860208,1.2314,3635.5,3635.4,5.75070869]
[1754033860405,0.1376,3635.5,3635.4,5.75070869]
[1754033860650,1.0938,3636.6,3636.0,3.0]
[1754033860813,0.1376,3636.2,3636.1,5.75015092]
[1754033864026,0.001,3637.0,3636.6,2.74982079]
[1754033864221,0.001,3637.0,3636.7,2.74972188]
[1754033864423,0.001,3637.0,3636.9,5.74959443]
[1754033864840,0.001,3637.0,3636.9,6.13289443]
[1754033865161,0.001,3637.0,3636.9,6.27049443]
[1754033865360,0.001,3637.0,3636.9,6.16599443]
[1754033865763,0.001,3637.0,3636.9,6.27049443]
[1754033866241,0.001,3637.0,3636.9,5.88719443]
[1754033866443,0.001,3637.0,3636.9,6.16599443]
[1754033867059,0.001,3637.0,3636.9,5.99169443]
[1754033867289,0.001,3637.0,3636.9,6.27049443]
[1754033868351,0.001,3637.0,3636.9,3.1376]
[1754033868661,1.5314,3637.0,3635.7,0.1386]
[1754033868862,0.1376,3636.8,3635.8,3.0]
[1754033869164,0.1376,3636.8,3636.5,3.0]
[1754033869371,1.0628,3636.9,3636.2,3.0]
[1754033869663,0.1376,3636.6,3636.2,2.75011054]
[1754033869835,0.001,3637.0,3636.2,2.75011054]
[1754033869836,0.1376,3636.7,3636.4,3.0]
[1754033870036,1.0628,3636.6,3635.8,2.75035251]
[1754033870239,0.1376,3636.6,3636.1,2.75019938]
[1754033870431,0.1376,3636.6,3636.5,3.0]
[1754033870627,0.1376,3636.6,3636.4,3.0]
[1754033870860,0.001,3637.0,3636.6,3.0]
[1754033871071,0.1376,3636.7,3636.6,3.0]
[1754033871274,0.1376,3636.7,3636.3,3.0]
[1754033871275,1.668,3636.7,3636.3,3.0]
[1754033871489,1.0628,3636.6,3636.3,3.0]
[1754033871782,1.0628,3636.6,3636.2,2.8877147]
[1754033871783,1.0628,3636.6,3636.2,0.1376]
[1754033871953,0.1376,3636.5,3636.0,0.1376]
[1754033872152,1.0628,3636.4,3636.0,2.88786219]
[1754033872352,1.0628,3636.3,3634.9,0.3527]
[1754033872588,1.0628,3636.3,3636.0,2.75021906]
[1754033872589,1.2004,3636.3,3636.0,2.75021906]
[1754033872952,0.1376,3636.3,3636.2,2.75012375]
[1754033873556,0.1376,3636.8,3636.5,2.74987818]
[1754033873795,0.1376,3636.8,3636.2,0.1376]
[1754033873998,0.001,3637.0,3636.6,0.1376]
[1754033874207,0.001,3637.0,3636.9,2.74959443]
[1754033874560,0.001,3637.0,3636.9,5.88719443]
[1754033877181,0.001,3637.0,3636.9,6.16599443]
[1754033877390,0.001,3637.0,3636.9,17.19098476]
[1754033878601,0.001,3637.9,3637.8,2.74891417]
[1754033878803,0.001,3637.9,3637.8,5.74891417]
[1754033881710,0.551,3639.2,3637.8,5.74891417]
[1754033881711,0.001,3639.2,3638.7,2.74823425]
[1754033881883,0.001,3639.2,3639.0,2.74799769]
[1754033882210,0.001,3639.2,3638.7,0.1376]
[1754033882211,1.5304,3639.1,3638.7,0.1376]
[1754033882366,0.1376,3638.8,3638.2,3.0]
[1754033882702,0.1376,3638.6,3638.2,3.0]
[1754033882896,1.5304,3638.5,3638.0,3.1376]
[1754033883067,0.4676,3638.5,3638.0,3.1376]
[1754033883268,1.0628,3638.4,3638.0,3.1376]
[1754033883470,0.4676,3638.5,3638.2,2.74861001]
[1754033883705,1.0628,3639.0,3638.5,3.0]
[1754033883878,1.2004,3639.0,3638.6,3.0]
[1754033884064,1.2004,3639.0,3638.9,3.0]
[1754033884267,1.2004,3639.0,3638.8,3.0]
[1754033884523,1.2004,3639.0,3638.6,2.74829054]
[1754033884822,1.5304,3638.9,3638.1,0.20964495]
[1754033884969,0.001,3639.2,3638.1,0.20964495]
[1754033885167,1.5304,3638.8,3637.5,5.7491035]
[1754033885408,0.001,3639.2,3637.8,3.0]
[1754033885619,1.5304,3638.7,3638.2,3.0]
[1754033885799,0.1376,3638.5,3638.2,3.0]
[1754033886115,0.1376,3638.5,3638.2,2.74861011]
[1754033886473,1.0628,3638.4,3638.0,5.88630559]
[1754033886704,1.0628,3638.4,3638.2,3.0]
[1754033887373,1.5304,3638.3,3638.1,0.20295433]
[1754033887604,1.5304,3638.3,3638.0,0.1376]
[1754033887916,1.0628,3638.3,3638.0,0.1376]
[1754033888066,1.5304,3638.2,3637.7,2.74893827]
[1754033888267,1.5304,3638.1,3637.7,3.1376]
[1754033888472,1.5304,3638.0,3637.3,0.1376]
[1754033888783,0.1376,3637.8,3637.3,0.1376]
[1754033888985,1.2004,3637.8,3637.5,3.0]
[1754033889183,1.2004,3637.8,3637.3,0.1376]
[1754033889395,1.0628,3637.7,3637.5,3.0]
[1754033889959,1.0628,3637.7,3637.5,2.74912812]
[1754033890105,1.0628,3637.7,3637.3,0.1376]
[1754033890476,1.5304,3637.6,3637.4,3.0]
[1754033890806,1.0628,3637.5,3637.4,5.74916906]
[1754033891509,1.0628,3637.5,3637.4,3.0]
[1754033891807,1.0628,3637.5,3637.4,5.74921647]
[1754033892510,1.2004,3637.8,3637.5,5.74913912]
[1754033892672,0.1376,3637.8,3637.5,5.74913912]
[1754033892871,1.2004,3637.8,3637.5,5.74913912]
[1754033893112,0.1376,3637.8,3637.5,5.74913912]
[1754033893296,1.2004,3637.8,3637.4,5.74919078]
[1754033893605,1.2004,3637.8,3637.3,5.88689102]
[1754033893606,1.0628,3637.7,3637.3,5.88689102]
[1754033893817,1.0628,3637.7,3637.6,2.74906531]
[1754033894021,0.551,3639.2,3637.5,2.77656959]
[1754033894022,0.4676,3638.3,3637.5,2.77656959]
[1754033894311,0.1376,3638.0,3637.7,3.0]
[1754033894505,1.0628,3637.9,3637.5,5.88667817]
[1754033894883,1.0628,3637.8,3637.5,0.1376]
[1754033895108,1.5304,3637.8,3637.5,3.1376]
[1754033895313,0.1376,3637.6,3637.0,0.1376]
[1754033895508,1.5304,3637.5,3636.2,0.20384868]
[1754033895822,0.1376,3636.9,3636.5,2.74989461]
[1754033895983,0.1376,3636.7,3636.4,3.0]
[1754033896317,0.1376,3636.7,3636.4,5.74990781]
[1754033896683,1.0628,3636.9,3636.6,2.74974859]
[1754033896882,1.0628,3636.9,3636.7,3.0]
[1754033896883,0.1376,3636.9,3636.7,3.0]
[1754033897183,0.1376,3636.9,3636.3,2.75004812]
[1754033897466,0.1376,3636.9,3636.4,3.0]
[1754033897925,0.1376,3637.0,3636.5,0.1376]
[1754033898232,0.1376,3637.3,3637.1,3.0]
[1754033898436,0.1376,3637.3,3637.0,3.0]
[1754033898590,0.4379,3637.5,3637.0,2.74949215]
[1754033898784,1.1507,3637.4,3637.0,3.0]
[1754033899012,0.1376,3637.4,3637.0,3.0]
[1754033899218,1.0131,3637.3,3637.1,2.74943979]
[1754033899525,0.1376,3637.4,3637.2,2.74936764]
[1754033899687,0.1376,3637.4,3637.1,2.74943263]
[1754033900108,0.1376,3637.4,3637.0,2.74949228]
[1754033900422,0.1376,3637.4,3636.8,0.1376]
[1754033900423,0.1376,3637.4,3637.2,3.0]
[1754033900820,1.451,3637.3,3636.8,2.88724231]
[1754033901028,1.451,3637.2,3636.4,2.74996285]
[1754033901186,0.1376,3636.9,3636.4,3.0]
[1754033901388,1.451,3636.8,3636.2,0.1376]
[1754033901640,1.0131,3637.2,3636.7,3.0]
[1754033901791,0.1376,3637.0,3636.7,5.74972907]
[1754033902128,0.1376,3637.0,3636.6,5.74979554]
[1754033902299,1.0131,3637.2,3636.7,0.02749745]
[1754033902501,1.0131,3637.8,3637.1,3.0]
[1754033902708,1.0131,3637.8,3637.1,5.74938334]
[1754033902709,0.1376,3637.4,3637.1,5.74938334]
[1754033902905,1.0131,3637.3,3636.9,0.1376]
[1754033903138,1.0131,3637.2,3636.9,3.1376]
[1754033904337,1.0131,3637.1,3636.9,3.1376]
[1754033904552,1.0131,3637.1,3637.0,3.0]
[1754033904836,0.1376,3637.4,3637.0,2.74951883]
[1754033905187,0.1376,3637.4,3636.9,5.88716758]
[1754033905416,1.0131,3637.3,3636.9,2.88716758]
[1754033905599,1.0131,3637.2,3636.9,2.74956758]
[1754033906090,0.1376,3637.4,3636.9,2.74956758]
[1754033906293,1.1507,3637.4,3636.8,3.1376]
[1754033906524,0.1376,3637.4,3636.8,3.1376]
[1754033906830,0.4379,3637.6,3637.0,3.0]
[1754033906987,0.1376,3637.5,3637.0,2.88711728]
[1754033907325,1.0131,3637.7,3637.3,2.74929205]
[1754033907504,1.1507,3637.7,3637.3,2.74929205]
[1754033907693,1.1507,3637.7,3637.4,2.74921008]
[1754033907894,1.1507,3637.7,3637.3,2.74926486]
[1754033908526,1.451,3637.6,3636.6,3.0]
[1754033908735,0.1376,3636.9,3636.3,2.75003927]
[1754033908945,0.1376,3636.9,3636.4,2.75197007]
[1754033909118,4.66794235,3638.2,3636.4,0.002]
[1754033909119,1.451,3636.8,3636.4,0.002]
[1754033909509,1.451,3636.7,3636.6,3.0]
[1754033910029,1.0131,3636.7,3636.6,3.0]
[1754033910727,0.1376,3636.8,3636.4,0.02949972]
[1754033910909,0.1376,3636.8,3636.6,5.74975506]
[1754033911243,0.1376,3636.9,3636.6,5.74980397]
[1754033911614,0.1376,3636.9,3636.7,2.74972113]
[1754033911913,1.0131,3637.0,3636.7,2.74972113]
[1754033911914,0.1376,3637.1,3636.7,2.74972534]
[1754033912101,0.1376,3637.1,3636.8,3.0]
[1754033912467,1.0131,3637.0,3636.6,3.1376]
[1754033912644,0.1376,3637.1,3636.6,0.1376]
[1754033912833,1.451,3636.9,3636.6,0.1376]
[1754033913140,1.451,3636.8,3636.4,0.1396]
[1754033913314,1.451,3636.7,3636.4,0.002]
[1754033913841,1.0131,3636.7,3636.4,0.002]
[1754033914340,1.0131,3637.2,3636.4,2.7519644]
[1754033914546,0.1376,3637.0,3636.6,5.74975003]
[1754033914843,0.1376,3637.0,3636.9,3.0]
[1754033915001,0.1376,3637.0,3636.9,0.02749594]
[1754033915198,0.1376,3637.0,3636.6,3.0]
[1754033915199,1.1507,3637.0,3636.6,3.0]
[1754033915434,1.0131,3636.9,3636.5,0.1376]
[1754033915904,1.0131,3636.9,3636.8,3.0]
[1754033916104,0.5755,3637.0,3636.8,3.0]
[1754033916105,0.1376,3637.0,3636.8,0.0274967]
[1754033916316,1.0131,3637.2,3636.8,5.74964177]
[1754033916550,1.1507,3637.2,3636.9,2.74957343]
[1754033916716,1.1507,3637.2,3636.7,3.1376]
[1754033916717,1.1507,3637.2,3636.7,0.1376]
[1754033916916,1.0131,3637.7,3637.4,3.0]
[1754033917120,1.0131,3637.6,3637.5,0.0274914]
[1754033917326,0.1376,3637.6,3637.4,2.74916689]
[1754033917525,0.1376,3637.6,3637.1,2.88703347]
[1754033917526,0.1376,3637.6,3637.2,3.0]
[1754033917852,0.1376,3637.6,3637.1,0.1376]
[1754033918049,1.451,3637.5,3636.9,3.0]
[1754033918210,1.451,3637.5,3636.9,2.74953075]
[1754033918211,0.1376,3637.4,3636.9,2.74953075]
[1754033918416,0.4379,3637.3,3637.0,2.74946973]
[1754033918616,1.451,3637.2,3637.0,2.74946973]
[1754033918812,1.0131,3637.1,3636.8,0.1376]
[1754033919018,1.5886,3637.0,3636.4,0.002]
[1754033919319,0.1376,3636.6,3636.4,0.002]
[1754033919840,1.451,3636.5,3636.4,0.002]
[1754033920340,1.0131,3636.5,3636.4,0.002]
[1754033920531,1.451,3636.5,3636.4,0.002]
[1754033921362,1.0131,3636.5,3636.4,0.002]
[1754033921871,1.451,3636.5,3636.4,0.002]
[1754033922153,1.60986,3636.5,3636.4,0.002]
[1754033922319,1.451,3636.5,3636.4,0.002]
[1754033922514,1.5886,3636.5,3636.4,0.002]
[1754033922838,0.1376,3636.5,3636.4,5.7519725]
[1754033923038,0.1376,3636.5,3636.4,0.002]
[1754033923423,0.1376,3636.5,3636.4,3.002]
[1754033923616,1.1507,3636.5,3636.4,2.7519725]
[1754033924032,0.1376,3636.5,3636.4,2.7519725]
[1754033924228,1.0131,3637.3,3636.8,3.0]
[1754033924435,1.0131,3637.2,3636.8,3.0]
[1754033924659,0.1376,3636.9,3636.8,5.74967003]
[1754033924828,0.1376,3637.1,3637.0,3.0]
[1754033925329,1.1507,3637.1,3637.0,3.0]
[1754033925525,1.1507,3637.1,3637.0,2.74951883]
[1754033925723,0.001,3638.8,3637.4,3.0]
[1754033925923,0.1376,3637.5,3637.2,3.0]
[1754033926170,0.1376,3637.5,3637.2,2.74934679]
[1754033926557,0.1376,3637.5,3637.4,3.0]
[1754033926857,0.1376,3637.9,3637.4,0.16509216]
[1754033927183,1.1739,3637.9,3637.4,0.1376]
[1754033927673,0.1376,3637.9,3637.8,2.74891417]
[1754033927839,0.1376,3637.9,3637.8,3.0]
[1754033928042,0.001,3638.8,3637.9,3.0]
[1754033928233,0.1376,3638.1,3637.6,0.1376]
[1754033928431,0.4614,3638.7,3638.2,2.74861128]
[1754033928684,0.001,3638.8,3638.2,2.74861128]
[1754033928685,1.4977,3638.6,3638.2,2.74861128]
[1754033928861,0.1376,3638.3,3637.6,0.1376]
[1754033929029,0.1376,3638.3,3637.8,2.74885908]
[1754033929229,0.1376,3638.3,3638.0,3.0]
[1754033929440,1.0363,3638.2,3638.0,3.0]
[1754033929635,0.1376,3638.3,3637.6,0.34339469]
[1754033929953,0.1376,3638.3,3638.2,3.0]
[1754033930463,1.1739,3638.3,3638.2,3.0]
[1754033930665,1.6353,3638.3,3638.2,3.0]
[1754033931227,1.79883,3638.3,3638.2,3.0]
[1754033932269,1.6353,3638.3,3638.2,3.0]
[1754033933070,0.55,3638.7,3638.2,2.74861195]
[1754033933071,1.0363,3638.7,3638.2,2.74861195]
[1754033933271,0.001,3638.8,3638.4,2.74846086]
[1754033933472,0.001,3638.8,3638.6,2.74830978]
[1754033933473,0.1376,3638.7,3638.6,2.74830978]
[1754033933674,0.1376,3638.7,3638.6,0.20352909]
[1754033933874,1.1739,3638.7,3638.1,2.8862749]
[1754033934041,1.0363,3638.7,3637.5,0.3103]
[1754033934237,1.1739,3638.7,3638.2,0.1376]
[1754033934442,1.4977,3638.6,3638.2,0.1376]
[1754033934643,1.4977,3638.6,3638.2,3.17483428]
[1754033934843,0.1376,3638.7,3638.2,3.17483428]
[1754033935073,0.06477004,3638.7,3638.4,3.0]
[1754033935378,1.4977,3638.6,3637.1,2.74938811]
[1754033935582,0.1,3637.2,3637.0,0.1376]
[1754033935943,0.1,3637.2,3637.0,3.1376]
[1754033936273,0.1,3637.2,3637.0,0.33978654]
[1754033936978,0.1,3637.2,3637.0,0.20218654]
[1754033937174,0.1,3637.2,3636.9,2.88718934]
[1754033937776,0.1,3637.2,3636.9,2.88717198]
[1754033937988,0.1,3637.2,3636.9,0.1376]
[1754033938138,0.1,3637.2,3637.1,3.0]
[1754033938472,0.1,3637.2,3637.1,2.74944323]
[1754033938908,0.1,3637.2,3636.9,2.88717672]
[1754033939275,0.1,3637.2,3636.9,3.1376]
[1754033939598,0.1,3637.2,3637.1,3.0]
[1754033939807,0.1,3637.2,3637.0,3.0]
[1754033940298,0.1,3637.2,3637.1,0.1376]
[1754033941080,0.1,3637.0,3636.9,0.2065635]
[1754033941275,0.1,3636.3,3635.3,0.2788]
[1754033941581,0.1,3636.0,3635.4,0.1376]
[1754033941905,0.1,3635.2,3634.7,0.826236]
[1754033942069,0.1,3635.4,3635.1,0.1376]
[1754033942263,0.1,3635.2,3634.0,0.29981947]
[1754033942468,1.0363,3635.4,3633.2,3.21377985]
[1754033942469,0.1,3634.9,3634.8,2.751183]
[1754033942769,1.0363,3636.4,3635.0,3.0]
[1754033942770,0.4614,3636.2,3635.0,3.0]
[1754033942994,0.1,3635.5,3635.4,3.0]
[1754033943774,0.1,3635.5,3635.4,2.75072894]
[1754033944195,0.1,3635.5,3635.4,5.75072894]
[1754033944508,14.3821827,3638.1,3634.9,2.75103289]
[1754033944509,0.1,3636.2,3636.1,5.75019938]
[1754033945415,0.4614,3637.1,3636.1,0.20602419]
[1754033945706,0.4614,3637.1,3636.7,3.0]
[1754033946015,1.0363,3637.3,3636.7,2.74974141]
[1754033946171,0.1,3637.0,3636.8,2.74961466]
[1754033946399,0.1,3637.0,3636.8,2.74960533]
[1754033946651,0.1,3637.0,3636.4,2.74992348]
[1754033946802,1.0363,3638.2,3636.4,2.74992348]
[1754033946803,0.1,3636.7,3636.6,5.7498023]
[1754033947141,0.1,3636.7,3636.6,3.0]
[1754033947142,0.5614,3636.7,3636.6,3.0]
[1754033947442,1.5977,3636.7,3636.6,3.0]
[1754033947846,0.1,3636.7,3636.6,3.0]
[1754033949427,0.1,3636.7,3636.6,5.74982126]
[1754033949733,0.1,3636.7,3636.6,3.0]
[1754033950640,0.5614,3636.7,3636.6,3.0]
[1754033950932,0.5614,3636.7,3636.6,2.95]
[1754033952443,0.699,3636.7,3636.6,2.95]
[1754033954240,1.7353,3636.7,3636.1,0.20402035]
[1754033954406,0.2376,3636.2,3635.7,3.1376]
[1754033954606,0.1,3635.9,3635.7,0.1376]
[1754033955151,0.1,3635.9,3635.6,5.75057302]
[1754033955310,0.1,3635.9,3635.6,5.88817302]
[1754033955640,0.1,3635.9,3635.6,3.1376]
[1754033956018,0.1,3635.9,3635.6,3.09580216]
[1754033956223,0.1,3635.7,3635.6,0.20763103]
[1754033956418,0.1,3635.7,3635.4,0.1376]
[1754033956619,0.1,3635.5,3634.6,2.75126985]
[1754033956809,0.1,3635.1,3635.0,0.1376]
[1754033957009,0.1,3635.1,3634.8,0.20849497]
[1754033957010,0.1,3634.9,3634.8,0.20849497]
[1754033957249,0.6967,3634.9,3634.8,0.002]
[1754033960231,0.2376,3634.9,3634.8,0.002]
[1754033960560,0.1,3634.9,3634.8,0.002]
[1754033960862,1.6056,3635.9,3634.8,3.002]
[1754033961156,0.1,3635.1,3635.0,0.1376]
[1754033962378,0.1,3635.1,3634.8,0.002]
[1754033962379,0.5591,3635.1,3634.8,0.002]
[1754033962577,0.65,3634.9,3634.8,0.002]
[1754033962733,0.87556,3634.9,3634.8,0.002]
[1754033962933,0.1,3633.5,3633.1,2.75245575]
[1754033963264,0.1,3633.3,3632.5,0.2808]
[1754033963574,0.1,3633.3,3632.5,0.49251978]
[1754033963729,0.1,3633.0,3632.7,2.75271877]
[1754033963934,0.5591,3633.3,3632.6,2.75278316]
[1754033964363,0.5591,3633.3,3632.1,0.02]
[1754033964364,0.1,3633.0,3632.9,3.0]
[1754033964567,0.1,3633.0,3632.8,3.0]
[1754033964727,0.1,3633.0,3632.5,2.75286579]
[1754033964728,0.1,3633.0,3632.2,5.75308018]
[1754033964935,0.1,3633.0,3632.5,2.75287277]
[1754033965208,0.1,3633.0,3632.8,2.75268545]
[1754033965521,0.1,3632.8,3632.6,2.75281655]
[1754033965722,0.1,3632.8,3632.7,2.75277341]
[1754033966395,0.1,3633.1,3633.0,5.7525461]
[1754033967302,0.1,3633.4,3633.3,2.75230627]
[1754033968321,0.1,3633.4,3633.1,5.75246718]
[1754033968322,0.1,3633.4,3633.1,3.0]
[1754033968524,1.1465,3634.1,3632.8,5.75263185]
[1754033968525,0.1,3632.9,3632.8,5.75263185]
[1754033968834,0.1,3632.9,3632.8,3.0]
[1754033969046,0.1,3632.9,3632.8,5.75269764]
[1754033969202,2.75127112,3634.7,3632.8,5.75269764]
[1754033969203,0.4591,3634.2,3633.5,2.75215211]
[1754033969402,0.55,3634.1,3632.8,0.30512674]
[1754033969607,0.55,3633.9,3632.9,3.0]
[1754033969802,0.55,3633.7,3632.9,2.75260617]
[1754033970009,0.4591,3633.6,3632.9,2.75260617]